fUSD/lending_fUSD_20250807
["ID","MTS","AMOUNT","RATE_DAILY","PERIOD"]
[377892644,1754602247348,-2089.35,0.00019178,2]
[377892645,1754602247358,-400.0,0.00019178,2]
[377892646,1754602247369,-400.0,0.00019178,2]
[377892647,1754602247379,-1886.24,0.00019178,2]
[377892648,1754602247389,-1848.0,0.00019178,2]
[377892649,1754602247399,-400.0,0.00019178,2]
[377892650,1754602247408,-400.0,0.00019178,2]
[377892651,1754602247418,-1059.93,0.00019178,2]
[377892652,1754602247428,-2600.59,0.00019178,2]
[377892653,1754602247437,-151.0,0.00019178,2]
[377892654,1754602247447,-151.0,0.00019178,2]
[377892655,1754602247457,-2662.4,0.00019178,2]
[377892656,1754602247466,-151.0,0.00019178,2]
[377892657,1754602247475,-151.0,0.00019178,2]
[377892658,1754602247485,-151.0,0.00019178,2]
[377892659,1754602247494,-151.0,0.00019178,2]
[377892660,1754602247504,-400.0,0.00019178,2]
[377892661,1754602247513,-168.030782,0.00019178,2]
[377892662,1754602247523,-1497.67,0.00019178,2]
[377892663,1754602247532,-1934.98,0.00019178,2]
[377892664,1754602247542,-151.0,0.00019178,2]
[377892665,1754602247551,-1155.37,0.00019178,2]
[377892666,1754602247561,-1509.61,0.00019178,2]
[377892667,1754602247570,-400.0,0.00019178,2]
[377892668,1754602247580,-753.24,0.00019178,2]
[377892669,1754602247591,-1869.03,0.00019178,2]
[377892670,1754602247600,-400.0,0.00019178,2]
[377892671,1754602247609,-491.64,0.00019178,2]
[377892672,1754602247619,-481.12,0.00019178,2]
[377892673,1754602247629,-400.0,0.00019178,2]
[377892674,1754602247638,-502.41,0.00019178,2]
[377892675,1754602247648,-876.05,0.00019178,2]
[377892676,1754602247658,-629.41,0.00019178,2]
[377892677,1754602247667,-400.0,0.00019178,2]
[377892678,1754602247677,-2865.59,0.00019178,2]
[377892679,1754602247686,-575.16,0.00019178,2]
[377892680,1754602247696,-3844.26,0.00019178,2]
[377892681,1754602247705,-500.0,0.00019178,2]
[377892682,1754602247715,-500.0,0.00019178,2]
[377892683,1754602247726,-500.0,0.00019178,2]
[377892684,1754602247736,-540.89,0.00019178,2]
[377892685,1754602247745,-500.0,0.00019178,2]
[377892686,1754602247755,-400.0,0.00019178,2]
[377892687,1754602247764,-500.0,0.00019178,2]
[377892688,1754602247774,-400.0,0.00019178,2]
[377892689,1754602247783,-400.0,0.00019178,2]
[377892690,1754602247792,-168.90415941,0.00019178,2]
[377892691,1754602247802,-400.0,0.00019178,2]
[377892692,1754602247811,-400.0,0.00019178,2]
[377892693,1754602247820,-400.0,0.00019178,2]
[377892694,1754602247830,-1473.0,0.00019178,2]
[377892695,1754602247840,-1887.58,0.00019178,2]
[377892696,1754602247851,-151.0,0.00019178,2]
[377892697,1754602247861,-400.0,0.00019178,2]
[377892698,1754602247871,-1323.84,0.00019178,2]
[377892699,1754602247880,-151.0,0.00019178,2]
[377892700,1754602247889,-151.0,0.00019178,2]
[377892701,1754602247899,-151.0,0.00019178,2]
[377892702,1754602247908,-151.0,0.00019178,2]
[377892703,1754602247919,-529.62,0.00019178,2]
[377892704,1754602247928,-416.91,0.00019178,2]
[377892705,1754602247937,-3167.11,0.00019178,2]
[377892706,1754602247947,-885.66,0.00019178,2]
[377892707,1754602247958,-400.0,0.00019178,2]
[377892708,1754602247967,-400.0,0.00019178,2]
[377892709,1754602247976,-902.83,0.00019178,2]
[377892710,1754602247986,-2074.76,0.00019178,2]
[377892711,1754602247995,-400.0,0.00019178,2]
[377892712,1754602248004,-151.0,0.00019178,2]
[377892713,1754602248014,-151.0,0.00019178,2]
[377892714,1754602248025,-402.24706152,0.00019178,2]
[377892715,1754602248034,-401.26871827,0.00019178,2]
[377892716,1754602248044,-400.0,0.00019178,2]
[377892717,1754602248054,-500.0,0.00019178,2]
[377892718,1754602248063,-400.0,0.00019178,2]
[377892719,1754602248073,-2495.26,0.00019178,2]
[377892720,1754602248083,-400.0,0.00019178,2]
[377892721,1754602248092,-2074.14,0.00019178,2]
[377892722,1754602248101,-429.33241426,0.00019178,2]
[377892723,1754602248111,-2503.69,0.00019178,2]
[377892724,1754602248120,-400.0,0.00019178,2]
[377892725,1754602248130,-895.97,0.00019178,2]
[377892726,1754602248139,-2015.68,0.00019178,2]
[377892727,1754602248149,-400.0,0.00019178,2]
[377892728,1754602248158,-1451.51,0.00019178,2]
[377892729,1754602248168,-400.0,0.00019178,2]
[377892730,1754602248177,-1844.98,0.00019178,2]
[377892731,1754602248186,-662.2,0.00019178,2]
[377892732,1754602248196,-1075.17,0.00019178,2]
[377892733,1754602248205,-974.45,0.00019178,2]
[377892734,1754602248214,-400.0,0.00019178,2]
[377892735,1754602248224,-3934.37,0.00019178,2]
[377892736,1754602248234,-1631.34,0.00019178,2]
[377892737,1754602248243,-771.45,0.00019178,2]
[377892738,1754602248253,-695.46,0.00019178,2]
[377892739,1754602248262,-400.0,0.00019178,2]
[377892740,1754602248272,-2693.81,0.00019178,2]
[377892741,1754602248282,-1493.97,0.00019178,2]
[377892742,1754602248298,-1826.96,0.00019178,2]
[377892743,1754602248318,-712.74,0.00019178,2]
[377892744,1754602248329,-2015.42,0.00019178,2]
[377892745,1754602248339,-400.0,0.00019178,2]
[377892746,1754602248348,-588.53,0.00019178,2]
[377892747,1754602248364,-11126.27,0.00019178,2]
[377892748,1754602248378,-430.16,0.00019178,2]
[377892749,1754602248388,-3890.67,0.00019178,2]
[377892750,1754602248397,-2951.42,0.00019178,2]
[377892751,1754602248407,-400.0,0.00019178,2]
[377892752,1754602248416,-964.85,0.00019178,2]
[377892753,1754602248425,-400.0,0.00019178,2]
[377892754,1754602248435,-1224.96,0.00019178,2]
[377892755,1754602248444,-400.0,0.00019178,2]
[377892756,1754602248454,-1125.56,0.00019178,2]
[377892757,1754602248463,-696.81,0.00019178,2]
[377892758,1754602248473,-696.81,0.00019178,2]
[377892759,1754602248482,-400.0,0.00019178,2]
[377892760,1754602248492,-696.81,0.00019178,2]
[377892761,1754602248502,-563.05,0.00019178,2]
[377892762,1754602248511,-696.81,0.00019178,2]
[377892763,1754602248522,-1917.53,0.00019178,2]
[377892764,1754602248531,-696.81,0.00019178,2]
[377892765,1754602248541,-400.0,0.00019178,2]
[377892766,1754602248550,-696.81,0.00019178,2]
[377892767,1754602248560,-400.0,0.00019178,2]
[377892768,1754602248570,-400.0,0.00019178,2]
[377892769,1754602248580,-1284.28,0.00019178,2]
[377892770,1754602248589,-400.0,0.00019178,2]
[377892771,1754602248599,-400.0,0.00019178,2]
[377892772,1754602248609,-1186.57,0.00019178,2]
[377892773,1754602248618,-5234.93,0.00019178,2]
[377892774,1754602248628,-2245.37,0.00019178,2]
[377892775,1754602248637,-321.8496135,0.00019178,2]
[377892776,1754602248647,-400.0,0.00019178,2]
[377892777,1754602248656,-400.0,0.00019178,2]
[377892778,1754602248666,-1066.98,0.00019178,2]
[377892779,1754602248676,-1376.0,0.00019178,2]
[377892780,1754602248685,-400.0,0.00019178,2]
[377892781,1754602248695,-327.58937267,0.00019178,2]
[377892782,1754602248704,-2180.71,0.00019178,2]
[377892783,1754602248714,-987.31,0.00019178,2]
[377892784,1754602248723,-400.0,0.00019178,2]
[377892785,1754602248732,-934.11,0.00019178,2]
[377892786,1754602248742,-151.0,0.00019178,2]
[377892787,1754602248752,-400.0,0.00019178,2]
[377892788,1754602248764,-432.76,0.00019178,2]
[377892789,1754602248774,-400.0,0.00019178,2]
[377892790,1754602248784,-151.0,0.00019178,2]
[377892791,1754602248799,-400.0,0.00019178,2]
[377892792,1754602248809,-151.0,0.00019178,2]
[377892793,1754602248819,-400.0,0.00019178,2]
[377892794,1754602248830,-151.0,0.00019178,2]
[377892795,1754602248839,-1575.08,0.00019178,2]
[377892796,1754602248850,-151.0,0.00019178,2]
[377892797,1754602248860,-754.39,0.00019178,2]
[377892798,1754602248870,-151.0,0.00019178,2]
[377892799,1754602248879,-151.0,0.00019178,2]
[377892800,1754602248889,-210.06474336,0.00019178,2]
[377892801,1754602248899,-151.0,0.00019178,2]
[377892802,1754602248916,-747.28,0.00019178,2]
[377892803,1754602248925,-400.0,0.00019178,2]
[377892804,1754602248935,-1392.95,0.00019178,2]
[377892805,1754602248944,-1114.66,0.00019178,2]
[377892806,1754602248954,-6637.28,0.00019178,2]
[377892807,1754602248963,-400.0,0.00019178,2]
[377892808,1754602248973,-605.8,0.00019178,2]
[377892809,1754602248983,-151.0,0.00019178,2]
[377892810,1754602248993,-500.01,0.00019178,2]
[377892811,1754602249003,-1466.31,0.00019178,2]
[377892812,1754602249013,-400.0,0.00019178,2]
[377892813,1754602249023,-436.28,0.00019178,2]
[377892814,1754602249032,-982.07,0.00019178,2]
[377892815,1754602249042,-400.0,0.00019178,2]
[377892816,1754602249052,-445.25,0.00019178,2]
[377892817,1754602249062,-503.29,0.00019178,2]
[377892818,1754602249072,-400.0,0.00019178,2]
[377892819,1754602249082,-570.76,0.00019178,2]
[377892820,1754602249091,-400.0,0.00019178,2]
[377892821,1754602249101,-400.0,0.00019178,2]
[377892822,1754602249111,-400.0,0.00019178,2]
[377892823,1754602249121,-400.0,0.00019178,2]
[377892824,1754602249131,-1584.56,0.00019178,2]
[377892825,1754602249140,-400.0,0.00019178,2]
[377892826,1754602249150,-1859.51,0.00019178,2]
[377892827,1754602249159,-400.0,0.00019178,2]
[377892828,1754602249169,-400.0,0.00019178,2]
[377892829,1754602249179,-976.16,0.00019178,2]
[377892830,1754602249188,-400.0,0.00019178,2]
[377892831,1754602249198,-400.0,0.00019178,2]
[377892832,1754602249207,-721.01,0.00019178,2]
[377892833,1754602249217,-753.2,0.00019178,2]
[377892834,1754602249226,-1555.82,0.00019178,2]
[377892835,1754602249235,-400.0,0.00019178,2]
[377892836,1754602249245,-1084.62,0.00019178,2]
[377892837,1754602249255,-951.09,0.00019178,2]
[377892838,1754602249265,-151.0,0.00019178,2]
[377892839,1754602249275,-36191.66577822,0.00019178,2]
[377892840,1754602249285,-418.03558152,0.00019178,2]
[377892841,1754602249295,-1612.0,0.00019178,2]
[377892842,1754602249307,-187.71,0.00019178,2]
[377892843,1754602249316,-275.71922064,0.00019178,2]
[377892844,1754602249326,-370.9488867,0.00019187,2]
[377892845,1754602249335,-775.0,0.000192,2]
[377892846,1754602249346,-194.74,0.00019216,2]
[377892847,1754602249356,-200.0,0.00019254,2]
[377892848,1754602249366,-6421.72414154,0.00019258,2]
[377892849,1754602249377,-636.90446,0.0001926,2]
[377892850,1754602249535,-151.0,0.00019262,2]
[377892851,1754602249545,-151.0,0.00019262,2]
[377892852,1754602249554,-151.0,0.00019262,2]
[377892853,1754602249564,-151.0,0.00019262,2]
[377892854,1754602249574,-151.0,0.00019262,2]
[377892855,1754602249584,-151.0,0.00019262,2]
[377892856,1754602249593,-151.0,0.00019262,2]
[377892857,1754602249603,-151.0,0.00019262,2]
[377892858,1754602249614,-207.82992449,0.00019262,2]
[377892859,1754602249624,-151.0,0.00019262,2]
[377892860,1754602249634,-151.0,0.00019262,2]
[377892861,1754602249644,-151.0,0.00019262,2]
[377892862,1754602249654,-151.0,0.00019262,2]
[377892863,1754602249663,-151.0,0.00019262,2]
[377892864,1754602249672,-151.0,0.00019262,2]
[377892865,1754602249682,-151.0,0.00019262,2]
[377892866,1754602249693,-151.0,0.00019262,2]
[377892867,1754602249702,-151.0,0.00019262,2]
[377892868,1754602249712,-151.0,0.00019262,2]
[377892869,1754602249721,-151.0,0.00019262,2]
[377892870,1754602249731,-151.0,0.00019262,2]
[377892871,1754602249740,-151.0,0.00019262,2]
[377892872,1754602249749,-151.0,0.00019262,2]
[377892873,1754602249759,-151.0,0.00019262,2]
[377892874,1754602249768,-151.0,0.00019262,2]
[377892875,1754602249778,-151.0,0.00019262,2]
[377892876,1754602249787,-151.0,0.00019262,2]
[377892877,1754602249797,-151.0,0.00019262,2]
[377892878,1754602249806,-151.0,0.00019262,2]
[377892879,1754602249815,-151.0,0.00019262,2]
[377892880,1754602249825,-151.0,0.00019262,2]
[377892881,1754602249834,-151.0,0.00019262,2]
[377892882,1754602249844,-151.0,0.00019262,2]
[377892883,1754602249853,-151.0,0.00019262,2]
[377892884,1754602249862,-236.51251111,0.00019262,2]
[377892885,1754602249871,-1932.0,0.000193,2]
[377892886,1754602249880,-444.0419,0.00019332,2]
[377892887,1754602249889,-500.0,0.00019342,2]
[377892888,1754602249899,-409.0344837,0.00019348,2]
[377892889,1754602249908,-6421.72414154,0.00019349,2]
[377892890,1754602249918,-817.6,0.00019366,2]
[377892891,1754602249927,-600.0,0.00019369,2]
[377892892,1754602249937,-162.45249459,0.00019382,2]
[377892893,1754602249947,-1172.2655535,0.000194,3]
[377892894,1754602249956,-351.65,0.00019406,2]
[377892895,1754602249966,-500.0,0.00019424,2]
[377892896,1754602249975,-1213.0,0.00019425,2]
[377892897,1754602249984,-1000.0,0.00019428,2]
[377892898,1754602249993,-2000.0,0.00019429,2]
[377892899,1754602250002,-500.0,0.00019429,2]
[377892900,1754602250011,-500.0,0.00019429,2]
[377892901,1754602250021,-500.0,0.00019429,2]
[377892902,1754602250029,-500.0,0.00019429,2]
[377892903,1754602250037,-523.36,0.00019429,2]
[377892904,1754602250046,-500.0,0.00019438,2]
[377892905,1754602250055,-500.0,0.00019438,2]
[377892906,1754602250064,-500.0,0.00019438,2]
[377892907,1754602250074,-8901.4484386,0.00019439,2]
[377892908,1754602250083,-3002.1244625,0.00019439,2]
[377892909,1754602250092,-515.4622549,0.00019439,2]
[377892910,1754602250101,-34832.5909999,0.00019439,2]
[377892911,1754602250110,-6421.72414154,0.00019441,2]
[377892912,1754602250119,-1000.0,0.00019442,2]
[377892913,1754602250129,-696.81,0.00019442,2]
[377892914,1754602250139,-61862.36216509,0.00019443,3]
[377892915,1754602250148,-211.58213282,0.00019443,3]
[377892916,1754602250157,-457.55740054,0.00019443,3]
[377892917,1754602250166,-1000.0,0.00019451,2]
[377892918,1754602250175,-500.0,0.00019451,2]
[377892919,1754602250185,-500.0,0.00019451,2]
[377892920,1754602250194,-500.0,0.00019451,2]
[377892921,1754602250204,-500.0,0.00019451,2]
[377892922,1754602250214,-500.0,0.00019451,2]
[377892923,1754602250224,-500.0,0.00019451,2]
[377892924,1754602250233,-500.0,0.00019451,2]
[377892925,1754602250242,-500.0,0.00019451,2]
[377892926,1754602250251,-442.43677107,0.00019451,2]
[377892927,1754602250260,-500.0,0.00019451,2]
[377892928,1754602250269,-500.0,0.00019451,2]
[377892929,1754602250279,-500.0,0.00019451,2]
[377892930,1754602250289,-500.0,0.00019451,2]
[377892931,1754602250300,-696.81,0.00019451,2]
[377892932,1754602250310,-696.81,0.00019451,2]
[377892933,1754602250319,-696.81,0.00019451,2]
[377892934,1754602250329,-696.81,0.00019451,2]
[377892935,1754602250339,-285.541094,0.00019452,2]
[377892936,1754602250348,-285.541094,0.00019452,2]
[377892937,1754602250357,-242.955438,0.00019452,2]
[377892938,1754602250367,-242.955438,0.00019452,2]
[377892939,1754602250376,-193.765323,0.00019452,2]
[377892940,1754602250386,-193.765323,0.00019452,2]
[377892941,1754602250396,-150.791888,0.00019452,2]
[377892942,1754602250405,-150.791888,0.00019452,2]
[377892943,1754602250414,-328.13075263,0.00019452,2]
[377892944,1754602250424,-400.0,0.00019452,2]
[377892945,1754602250433,-193.529374,0.00019452,2]
[377892946,1754602250442,-193.529374,0.00019452,2]
[377892947,1754602250452,-400.0,0.00019452,2]
[377892948,1754602250462,-400.0,0.00019452,2]
[377892949,1754602250472,-300.71,0.00019452,2]
[377892950,1754602250481,-1400.19,0.00019452,2]
[377892951,1754602250490,-1062.06,0.00019452,2]
[377892952,1754602250499,-400.0,0.00019452,2]
[377892953,1754602250508,-176.73538189,0.00019452,2]
[377892954,1754602250518,-400.0,0.00019452,2]
[377892955,1754602250527,-400.0,0.00019452,2]
[377892956,1754602250537,-701.69,0.00019452,2]
[377892957,1754602250546,-400.0,0.00019452,2]
[377892958,1754602250555,-1255.88,0.00019452,2]
[377892959,1754602250564,-400.0,0.00019452,2]
[377892960,1754602250574,-400.0,0.00019452,2]
[377892961,1754602250583,-400.0,0.00019452,2]
[377892962,1754602250592,-400.0,0.00019452,2]
[377892963,1754602250601,-400.0,0.00019452,2]
[377892964,1754602250610,-400.0,0.00019452,2]
[377892965,1754602250619,-502.07,0.00019452,2]
[377892966,1754602250628,-400.0,0.00019452,2]
[377892967,1754602250637,-468.41,0.00019452,2]
[377892968,1754602250646,-400.0,0.00019452,2]
[377892969,1754602250655,-400.0,0.00019452,2]
[377892970,1754602250665,-400.0,0.00019452,2]
[377892971,1754602250674,-400.0,0.00019452,2]
[377892972,1754602250683,-400.0,0.00019452,2]
[377892973,1754602250693,-400.0,0.00019452,2]
[377892974,1754602250702,-400.0,0.00019452,2]
[377892975,1754602250712,-169.37597455,0.00019452,2]
[377892976,1754602250721,-578.74,0.00019452,2]
[377892977,1754602250730,-400.0,0.00019452,2]
[377892978,1754602250739,-449.86,0.00019452,2]
[377892979,1754602250748,-400.0,0.00019452,2]
[377892980,1754602250757,-400.0,0.00019452,2]
[377892981,1754602250766,-400.0,0.00019452,2]
[377892982,1754602250776,-400.0,0.00019452,2]
[377892983,1754602250785,-400.0,0.00019452,2]
[377892984,1754602250795,-1169.93,0.00019452,2]
[377892985,1754602250804,-400.0,0.00019452,2]
[377892986,1754602250813,-694.25,0.00019452,2]
[377892987,1754602250823,-400.0,0.00019452,2]
[377892988,1754602250832,-400.0,0.00019452,2]
[377892989,1754602250840,-400.0,0.00019452,2]
[377892990,1754602250849,-400.0,0.00019452,2]
[377892991,1754602250859,-400.0,0.00019452,2]
[377892992,1754602250868,-1101.45,0.00019452,2]
[377892993,1754602250877,-742.15,0.00019452,2]
[377892994,1754602250887,-274.23932873,0.00019452,2]
[377892995,1754602250896,-400.0,0.00019452,2]
[377892996,1754602250905,-400.0,0.00019452,2]
[377892997,1754602250914,-400.0,0.00019452,2]
[377892998,1754602250923,-1261.15,0.00019452,2]
[377892999,1754602250933,-1221.49,0.00019452,2]
[377893000,1754602250942,-400.0,0.00019452,2]
[377893001,1754602250951,-400.0,0.00019452,2]
[377893002,1754602250960,-400.0,0.00019452,2]
[377893003,1754602250970,-400.0,0.00019452,2]
[377893004,1754602250979,-689.83,0.00019452,2]
[377893005,1754602250988,-400.0,0.00019452,2]
[377893006,1754602250997,-400.0,0.00019452,2]
[377893007,1754602251007,-400.0,0.00019452,2]
[377893008,1754602251016,-1133.14,0.00019452,2]
[377893009,1754602251025,-594.75,0.00019452,2]
[377893010,1754602251034,-400.0,0.00019452,2]
[377893011,1754602251043,-1638.88,0.00019452,2]
[377893012,1754602251052,-400.0,0.00019452,2]
[377893013,1754602251062,-400.0,0.00019452,2]
[377893014,1754602251071,-402.76,0.00019452,2]
[377893015,1754602251080,-400.0,0.00019452,2]
[377893016,1754602251089,-1592.71,0.00019452,2]
[377893017,1754602251098,-400.0,0.00019452,2]
[377893018,1754602251107,-400.0,0.00019452,2]
[377893019,1754602251117,-440.06,0.00019452,2]
[377893020,1754602251127,-400.0,0.00019452,2]
[377893021,1754602251140,-545.8,0.00019452,2]
[377893022,1754602251149,-679.21,0.00019452,2]
[377893023,1754602251159,-1575.6,0.00019452,2]
[377893024,1754602251168,-466.91,0.00019452,2]
[377893025,1754602251178,-1286.06,0.00019452,2]
[377893026,1754602251188,-400.0,0.00019452,2]
[377893027,1754602251197,-994.8,0.00019452,2]
[377893028,1754602251206,-400.0,0.00019452,2]
[377893029,1754602251216,-1303.93,0.00019452,2]
[377893030,1754602251225,-400.0,0.00019452,2]
[377893031,1754602251234,-500.6076738,0.00019452,2]
[377893032,1754602251243,-649.45,0.00019452,2]
[377893033,1754602251252,-484.92,0.00019452,2]
[377893034,1754602251261,-613.02,0.00019452,2]
[377893035,1754602251271,-445.12,0.00019452,2]
[377893036,1754602251281,-400.0,0.00019452,2]
[377893037,1754602251291,-1119.82,0.00019452,2]
[377893038,1754602251305,-1084.02,0.00019452,2]
[377893039,1754602251314,-368.01,0.00019452,2]
[377893040,1754602251323,-400.0,0.00019452,2]
[377893041,1754602251333,-400.0,0.00019452,2]
[377893042,1754602251343,-1833.17,0.00019452,2]
[377893043,1754602251352,-540.93489011,0.00019452,2]
[377893044,1754602251362,-400.0,0.00019452,2]
[377893045,1754602251373,-400.0,0.00019452,2]
[377893046,1754602251382,-400.0,0.00019452,2]
[377893047,1754602251392,-562.55,0.00019452,2]
[377893048,1754602251401,-400.0,0.00019452,2]
[377893049,1754602251411,-400.0,0.00019452,2]
[377893050,1754602251420,-400.0,0.00019452,2]
[377893051,1754602251430,-419.61,0.00019452,2]
[377893052,1754602251440,-400.0,0.00019452,2]
[377893053,1754602251449,-400.0,0.00019452,2]
[377893054,1754602251458,-400.0,0.00019452,2]
[377893055,1754602251469,-437.56,0.00019452,2]
[377893056,1754602251478,-400.0,0.00019452,2]
[377893057,1754602251488,-728.26,0.00019452,2]
[377893058,1754602251498,-400.0,0.00019452,2]
[377893059,1754602251507,-1599.37,0.00019452,2]
[377893060,1754602251517,-409.67,0.00019452,2]
[377893061,1754602251527,-450.75,0.00019452,2]
[377893062,1754602251536,-400.0,0.00019452,2]
[377893063,1754602251546,-400.0,0.00019452,2]
[377893064,1754602251558,-400.0,0.00019452,2]
[377893065,1754602251568,-594.07,0.00019452,2]
[377893066,1754602251578,-982.3,0.00019452,2]
[377893067,1754602251588,-972.61,0.00019452,2]
[377893068,1754602251598,-400.0,0.00019452,2]
[377893069,1754602251608,-575.38,0.00019452,2]
[377893070,1754602251617,-545.79,0.00019452,2]
[377893071,1754602251627,-540.17,0.00019452,2]
[377893072,1754602251636,-622.75,0.00019452,2]
[377893073,1754602251646,-400.0,0.00019452,2]
[377893074,1754602251655,-681.47,0.00019452,2]
[377893075,1754602251664,-400.0,0.00019452,2]
[377893076,1754602251674,-416.36,0.00019452,2]
[377893077,1754602251683,-1000.34,0.00019452,2]
[377893078,1754602251693,-1492.52,0.00019452,2]
[377893079,1754602251702,-1233.34,0.00019452,2]
[377893080,1754602251711,-439.98,0.00019452,2]
[377893081,1754602251720,-400.0,0.00019452,2]
[377893082,1754602251729,-673.98,0.00019452,2]
[377893083,1754602251739,-481.95,0.00019452,2]
[377893084,1754602251748,-400.0,0.00019452,2]
[377893085,1754602251757,-400.0,0.00019452,2]
[377893086,1754602251766,-1509.72,0.00019452,2]
[377893087,1754602251776,-450.07,0.00019452,2]
[377893088,1754602251786,-400.0,0.00019452,2]
[377893089,1754602251795,-797.67,0.00019452,2]
[377893090,1754602251804,-400.0,0.00019452,2]
[377893091,1754602251813,-400.0,0.00019452,2]
[377893092,1754602251823,-400.0,0.00019452,2]
[377893093,1754602251832,-658.83,0.00019452,2]
[377893094,1754602251841,-400.0,0.00019452,2]
[377893095,1754602251850,-400.0,0.00019452,2]
[377893096,1754602251860,-400.0,0.00019452,2]
[377893097,1754602251870,-980.12,0.00019452,2]
[377893098,1754602251879,-439.04,0.00019452,2]
[377893099,1754602251888,-400.0,0.00019452,2]
[377893100,1754602251898,-400.0,0.00019452,2]
[377893101,1754602251907,-704.35,0.00019452,2]
[377893102,1754602251917,-596.75,0.00019452,2]
[377893103,1754602251927,-400.0,0.00019452,2]
[377893104,1754602251936,-400.0,0.00019452,2]
[377893105,1754602251946,-670.69,0.00019452,2]
[377893106,1754602251955,-400.0,0.00019452,2]
[377893107,1754602251964,-400.0,0.00019452,2]
[377893108,1754602251975,-400.0,0.00019452,2]
[377893109,1754602251984,-1613.19,0.00019452,2]
[377893110,1754602251994,-400.0,0.00019452,2]
[377893111,1754602252003,-1446.99,0.00019452,2]
[377893112,1754602252012,-400.0,0.00019452,2]
[377893113,1754602252022,-400.0,0.00019452,2]
[377893114,1754602252032,-400.0,0.00019452,2]
[377893115,1754602252041,-845.11,0.00019452,2]
[377893116,1754602252050,-1346.41,0.00019452,2]
[377893117,1754602252059,-855.66,0.00019452,2]
[377893118,1754602252068,-1675.73,0.00019452,2]
[377893119,1754602252078,-708.14,0.00019452,2]
[377893120,1754602252088,-1002.37,0.00019452,2]
[377893121,1754602252097,-400.0,0.00019452,2]
[377893122,1754602252106,-533.7,0.00019452,2]
[377893123,1754602252116,-400.0,0.00019452,2]
[377893124,1754602252125,-400.0,0.00019452,2]
[377893125,1754602252134,-734.34,0.00019452,2]
[377893126,1754602252144,-400.0,0.00019452,2]
[377893127,1754602252154,-847.51,0.00019452,2]
[377893128,1754602252163,-400.0,0.00019452,2]
[377893129,1754602252172,-400.0,0.00019452,2]
[377893130,1754602252182,-535.22,0.00019452,2]
[377893131,1754602252191,-400.0,0.00019452,2]
[377893132,1754602252201,-400.0,0.00019452,2]
[377893133,1754602252210,-834.61,0.00019452,2]
[377893134,1754602252219,-694.14,0.00019452,2]
[377893135,1754602252228,-400.0,0.00019452,2]
[377893136,1754602252238,-400.0,0.00019452,2]
[377893137,1754602252248,-400.0,0.00019452,2]
[377893138,1754602252257,-400.0,0.00019452,2]
[377893139,1754602252267,-400.0,0.00019452,2]
[377893140,1754602252278,-400.0,0.00019452,2]
[377893141,1754602252288,-555.71,0.00019452,2]
[377893142,1754602252299,-400.0,0.00019452,2]
[377893143,1754602252314,-400.0,0.00019452,2]